bitfinex/quotes_SOLUSD_20241111
["timestamp","ask_amount","ask_price","bid_price","bid_amount"]
[1731308019387,17.52451848,207.12,207.04,17.52451848]
[1731308021778,17.52451848,207.14,207.06,17.52451848]
[1731308022199,17.52451848,207.16,207.08,17.52451848]
[1731308022490,17.52451848,207.18,207.1,17.52451848]
[1731308023078,17.52451848,207.16,207.08,17.52451848]
[1731308023493,17.52451848,207.14,207.06,17.52451848]
[1731308023694,17.52451848,207.12,207.04,17.52451848]
[1731308023885,24.13151848,207.12,207.04,17.52451848]
[1731308024596,6.607,207.12,207.06,17.52451848]
[1731308027789,24.13151848,207.12,207.04,17.52451848]
[1731308029276,6.607,207.12,207.06,17.52451848]
[1731308029701,24.13151848,207.12,207.04,17.52451848]
[1731308029877,17.52451848,207.1,207.02,17.52451848]
[1731308031205,24.13151848,207.12,207.04,17.52451848]
[1731308037800,24.13151848,207.12,207.02,17.52451848]
[1731308037801,17.52451848,207.1,207.02,17.52451848]
[1731308038104,17.52451848,207.1,207.0,20.16056567]
[1731308038311,17.52451848,207.1,207.0,17.52451848]
[1731308038797,17.52451848,207.08,207.0,17.52451848]
[1731308039008,17.52451848,207.06,206.98,17.52451848]
[1731308042786,17.52451848,207.02,206.94,17.52451848]
[1731308043691,17.52451848,207.0,206.92,17.52451848]
[1731308043893,17.52451848,207.02,206.94,17.52451848]
[1731308044909,17.52451848,207.0,206.92,20.08951917]
[1731308045083,17.52451848,207.0,206.93,0.12549]
[1731308045285,17.52451848,207.0,206.93,23.902374]
[1731308046108,17.52451848,207.0,206.92,17.52451848]
[1731308047015,17.52451848,207.0,206.93,20.0]
[1731308047200,17.52451848,207.02,206.94,17.52451848]
[1731308049009,33.67991848,207.04,206.96,17.52451848]
[1731308049215,16.1554,207.04,207.0,17.52451848]
[1731308049410,6.16,207.05,207.02,17.52451848]
[1731308049611,16.1589,207.09,207.04,17.52451848]
[1731308049909,6.5242,207.1,207.06,17.52451848]
[1731308050216,6.5242,207.1,207.08,17.52451848]
[1731308050600,6.5242,207.1,207.01,0.12549]
[1731308050601,6.5242,207.1,207.06,17.52451848]
[1731308051017,6.5242,207.1,207.08,17.52451848]
[1731308051216,16.1589,207.14,207.09,0.12549]
[1731308051510,6.1953,207.15,207.11,23.902374]
[1731308051703,6.1953,207.15,207.08,17.52451848]
[1731308051905,6.1953,207.15,207.1,17.52451848]
[1731308052213,6.1953,207.15,207.12,17.52451848]
[1731308052513,15.1302,207.19,207.13,17.52451848]
[1731308052727,32.65471848,207.19,207.12,17.52451848]
[1731308052917,32.65471848,207.19,207.1,17.52451848]
[1731308052918,17.52451848,207.17,207.1,17.52451848]
[1731308053115,6.0124,207.1,207.0,2.57728969]
[1731308053295,6.0124,207.1,207.02,17.52451848]
[1731308053498,6.0124,207.1,207.04,17.52451848]
[1731308053712,6.0124,207.1,207.05,0.12549]
[1731308054503,6.0124,207.1,207.05,20.12549]
[1731308055213,6.0124,207.1,207.06,17.52451848]
[1731308055604,6.0124,207.1,207.04,17.52451848]
[1731308055816,6.0124,207.1,206.94,0.1]
[1731308055817,17.52451848,207.09,207.03,23.776884]
[1731308056122,16.1123,207.08,206.89,16.4343]
[1731308056414,29.0,207.17,207.07,17.52451848]
[1731308056415,17.52451848,207.17,207.07,17.52451848]
[1731308056596,17.52451848,207.17,207.09,17.52451848]
[1731308056796,17.52451848,207.11,207.03,17.52451848]
[1731308056996,6.0881,207.1,207.03,17.52451848]
[1731308057408,6.0881,207.1,207.04,20.0]
[1731308057602,17.52451848,207.09,207.01,17.52451848]
[1731308058199,17.52451848,207.07,206.99,17.52451848]
[1731308058397,10.9168,207.1,206.97,17.52451848]
[1731308058398,17.52451848,207.05,206.97,17.52451848]
[1731308059514,17.52451848,207.03,206.95,17.52451848]
[1731308059735,17.52451848,207.03,206.96,20.0]
[1731308061795,17.52451848,207.07,206.99,17.52451848]
[1731308062413,17.52451848,207.07,207.0,20.0]
[1731308063002,17.52451848,207.09,207.0,20.0]
[1731308063201,17.52451848,207.09,207.01,17.52451848]
[1731308063913,6.0881,207.1,207.03,17.52451848]
[1731308064101,6.0881,207.1,207.04,20.0]
[1731308065126,6.0881,207.1,207.0,17.52451848]
[1731308065305,0.1,207.21,207.09,17.52451848]
[1731308065306,17.52451848,207.17,207.09,17.52451848]
[1731308065721,17.52451848,207.17,207.1,20.0]
[1731308066620,17.52451848,207.15,207.06,17.52451848]
[1731308066809,17.52451848,207.15,207.07,20.0]
[1731308067808,17.52451848,207.15,207.06,17.52451848]
[1731308068015,17.52451848,207.15,207.07,20.0]
[1731308070516,17.52451848,207.17,207.1,17.52451848]
[1731308071430,17.52451848,207.17,207.08,17.52451848]
[1731308071731,22.4231,207.18,207.03,26.39380539]
[1731308071732,17.52451848,207.15,207.07,20.0]
[1731308072609,17.52451848,207.13,207.05,20.0]
[1731308073236,17.52451848,207.13,207.04,17.52451848]
[1731308074632,17.52451848,207.13,207.05,20.0]
[1731308074809,17.52451848,207.15,207.08,17.52451848]
[1731308075014,17.52451848,207.17,207.08,17.52451848]
[1731308076624,17.52451848,207.15,207.08,17.52451848]
[1731308078930,22.4231,207.18,207.05,20.0]
[1731308078931,22.4231,207.18,207.11,20.0]
[1731308079229,22.4231,207.18,207.12,17.52451848]
[1731308081939,17.52451848,207.17,207.09,20.0]
[1731308082114,17.52451848,207.17,207.08,17.52451848]
[1731308082313,17.52451848,207.13,207.05,2.60015763]
[1731308082517,22.4231,207.18,207.03,19.303993]
[1731308082518,17.52451848,207.15,207.06,17.52451848]
[1731308083529,17.52451848,207.15,207.07,20.0]
[1731308083920,17.52451848,207.15,207.06,17.52451848]
[1731308084418,17.52451848,207.15,207.08,17.52451848]
[1731308084619,17.52451848,207.15,207.04,23.902374]
[1731308084620,17.52451848,207.15,207.06,17.52451848]
[1731308084825,17.52451848,207.13,207.06,17.52451848]
[1731308085414,17.52451848,207.11,207.03,17.52451848]
[1731308085634,17.52451848,207.09,207.01,17.52451848]
[1731308086336,17.52451848,207.11,207.03,17.52451848]
[1731308087241,17.52451848,207.13,207.05,17.52451848]
[1731308089437,17.52451848,207.11,207.04,23.776884]
[1731308089820,17.52451848,207.07,206.99,17.52451848]
[1731308090232,17.52451848,207.05,206.97,17.52451848]
[1731308090539,17.52451848,207.03,206.95,17.52451848]
[1731308091930,17.52451848,207.01,206.93,20.19044314]
[1731308092238,17.52451848,207.01,206.94,20.0]
[1731308093427,23.1646,207.08,206.96,20.0]
[1731308093428,17.52451848,207.03,206.96,20.0]
[1731308093735,17.52451848,207.05,206.98,20.0]
[1731308094650,17.52451848,207.03,206.95,17.52451848]
[1731308094946,17.52451848,207.03,206.97,20.0]
[1731308095244,17.52451848,207.05,206.97,37.52451848]
[1731308095745,17.52451848,207.05,206.97,20.0]
[1731308097432,17.52451848,207.03,206.96,20.0]
[1731308097649,17.52451848,207.05,206.98,20.0]
[1731308099928,17.52451848,207.05,206.99,17.52451848]
[1731308101640,17.52451848,207.02,206.97,9.55]
[1731308101829,17.52451848,207.0,206.97,9.55]
[1731308104849,17.52451848,206.98,206.97,9.55]
[1731308106229,17.52451848,207.0,206.97,9.55]
[1731308109156,17.52451848,207.03,206.97,9.55]
[1731308109332,17.52451848,207.05,206.98,20.0]
[1731308109527,17.52451848,207.06,207.0,20.0]
[1731308109846,17.52451848,207.06,206.93,0.1]
[1731308109847,0.1,206.96,206.88,5.02396211]
[1731308110152,17.52451848,206.9,206.79,17.52451848]
[1731308110359,17.52451848,206.87,206.79,22.54930437]
[1731308110649,17.52451848,206.87,206.79,17.52451848]
[1731308111450,17.52451848,206.91,206.82,23.776884]
[1731308112143,17.52451848,206.89,206.81,17.52451848]
[1731308112343,49.5784,206.97,206.81,17.52451848]
[1731308112344,17.52451848,206.91,206.81,17.52451848]
[1731308112534,15.8067,206.97,206.83,17.52451848]
[1731308112732,17.52451848,206.94,206.85,17.52451848]
[1731308112937,17.52451848,206.96,206.89,17.52451848]
[1731308113153,17.52451848,206.96,206.9,20.0]
[1731308113852,17.52451848,206.94,206.88,20.0]
[1731308114041,17.52451848,206.94,206.87,17.52451848]
[1731308114249,17.52451848,206.94,206.88,20.0]
[1731308116354,17.52451848,206.94,206.85,37.52451848]
[1731308116747,17.52451848,206.9,206.81,17.52451848]
[1731308117950,17.52451848,206.88,206.81,20.0]
[1731308119455,17.52451848,206.86,206.81,20.0]
[1731308119755,17.52451848,206.84,206.77,17.52451848]
[1731308120135,17.52451848,206.86,206.79,17.52451848]
[1731308120740,17.52451848,206.86,206.8,20.0]
[1731308121456,17.52451848,206.88,206.81,17.52451848]
[1731308121755,17.52451848,206.88,206.82,20.0]
[1731308122148,17.52451848,206.9,206.82,20.0]
[1731308123154,17.52451848,206.9,206.84,20.0]
[1731308124837,23.61271848,206.94,206.87,17.52451848]
[1731308125039,15.5282,206.98,206.87,17.52451848]
[1731308125040,17.52451848,206.96,206.88,43.776884]
[1731308125262,17.52451848,206.96,206.9,43.776884]
[1731308125958,6.2132,207.0,206.95,23.776884]
[1731308126162,17.52451848,207.02,206.96,20.0]
[1731308126754,17.52451848,207.0,206.91,17.52451848]
[1731308127067,17.52451848,206.96,206.9,20.0]
[1731308128361,17.52451848,206.96,206.89,17.52451848]
[1731308128565,17.52451848,206.96,206.9,20.0]
[1731308129768,17.52451848,207.0,206.91,41.42689248]
[1731308129978,17.52451848,206.98,206.92,20.0]
[1731308130767,17.52451848,206.98,206.86,18.98390356]
[1731308130768,17.52451848,206.98,206.89,17.52451848]
[1731308132872,15.5282,207.03,206.91,17.52451848]
[1731308133074,17.52451848,206.99,206.91,17.52451848]
[1731308133285,15.5282,207.03,206.86,18.98390356]
[1731308133286,17.52451848,206.97,206.89,17.52451848]
[1731308133576,17.52451848,206.97,206.88,23.776884]
[1731308133963,20.3585,207.03,206.86,18.98390356]
[1731308133964,17.52451848,206.95,206.86,16.4196]
[1731308134283,17.52451848,206.93,206.85,17.52451848]
[1731308135172,24.00661848,206.95,206.86,23.776884]
[1731308135581,24.00661848,206.95,206.87,17.65000848]
[1731308135773,6.4821,206.95,206.89,17.52451848]
[1731308137758,17.52451848,206.99,206.92,23.776884]
[1731308139473,6.5572,207.01,206.93,17.65000848]
[1731308139668,17.52451848,207.04,206.96,23.776884]
[1731308139864,17.52451848,207.02,206.95,17.52451848]
[1731308140070,17.52451848,207.0,206.93,0.12549]
[1731308140374,17.52451848,206.98,206.91,16.0784]
[1731308140890,17.52451848,206.96,206.91,16.0784]
[1731308141265,17.52451848,206.98,206.91,16.0784]
[1731308141877,17.52451848,207.0,206.92,41.30140248]
[1731308142081,17.52451848,207.02,206.93,0.12549]
[1731308142376,17.52451848,207.02,206.94,17.52451848]
[1731308142761,17.52451848,207.02,206.95,23.902374]
[1731308143082,17.52451848,207.04,206.96,17.52451848]
[1731308143295,6.5572,207.07,207.0,17.52451848]
[1731308143585,17.52451848,207.09,207.01,23.776884]
[1731308143879,17.52451848,207.07,206.93,0.1]
[1731308144063,17.52451848,207.03,206.96,17.52451848]
[1731308144765,17.52451848,207.01,206.95,23.776884]
[1731308147682,17.52451848,207.05,206.96,17.65000848]
[1731308147860,5.99099143,207.11,206.96,17.65000848]
[1731308147861,17.52451848,207.03,206.96,17.52451848]
[1731308148184,17.52451848,207.05,206.97,23.776884]
[1731308149383,17.52451848,207.03,206.97,23.776884]
[1731308149777,17.52451848,207.03,206.94,17.52451848]
[1731308150085,17.52451848,207.03,206.95,23.776884]
[1731308153171,17.52451848,207.01,206.92,17.52451848]
[1731308153479,17.52451848,206.99,206.93,23.776884]
[1731308153663,17.52451848,206.99,206.92,17.52451848]
[1731308153664,17.52451848,206.99,206.92,23.776884]
[1731308153869,17.52451848,206.99,206.92,41.30140248]
[1731308154067,17.52451848,207.01,206.94,17.52451848]
[1731308154267,23.89641848,207.03,206.95,23.776884]
[1731308154789,23.89641848,207.03,206.96,17.52451848]
[1731308155086,17.52451848,207.05,206.96,17.52451848]
[1731308155269,17.52451848,207.03,206.96,17.52451848]
[1731308155475,17.52451848,207.05,206.97,23.776884]
[1731308156781,17.52451848,207.07,206.99,23.776884]
[1731308157078,17.52451848,207.05,206.98,17.52451848]
[1731308157276,17.52451848,207.05,206.96,17.52451848]
[1731308157682,17.52451848,207.05,206.97,23.776884]
[1731308158569,17.52451848,207.01,206.92,0.12549]
[1731308158890,17.52451848,207.01,206.94,23.776884]
[1731308159098,17.52451848,207.01,206.94,0.12549]
[1731308159761,17.52451848,207.03,206.95,17.52451848]
[1731308160872,17.52451848,207.01,206.94,0.12549]
[1731308161076,17.52451848,207.01,206.94,23.902374]
[1731308162390,17.52451848,206.99,206.92,23.776884]
[1731308162967,17.52451848,206.99,206.93,0.12549]
[1731308163291,17.52451848,207.03,206.95,17.52451848]
[1731308163474,17.52451848,207.03,206.96,23.902374]
[1731308167303,17.52451848,207.01,206.94,23.776884]
[1731308167596,17.52451848,207.01,206.95,0.12549]
[1731308167795,17.52451848,206.99,206.92,2.65201314]
[1731308168002,17.52451848,206.95,206.87,17.52451848]
[1731308168376,17.52451848,206.95,206.88,0.12549]
[1731308168576,17.52451848,206.95,206.87,17.52451848]
[1731308168881,17.52451848,206.95,206.88,0.12549]
[1731308169799,6.3179,206.99,206.86,15.743]
[1731308170004,17.52451848,206.93,206.86,15.743]
[1731308170507,17.52451848,206.91,206.86,15.743]
[1731308171576,17.52451848,206.93,206.86,15.743]
[1731308172079,17.52451848,206.93,206.86,18.32017803]
[1731308173488,17.52451848,206.95,206.86,18.32017803]
[1731308173892,17.52451848,206.97,206.89,17.52451848]
[1731308174099,17.52451848,206.97,206.9,23.776884]
[1731308174295,17.52451848,206.99,206.92,23.776884]
[1731308174480,17.52451848,207.01,206.94,23.776884]
[1731308174895,17.52451848,206.97,206.89,17.52451848]
[1731308175098,17.52451848,206.97,206.9,23.776884]
[1731308175609,17.52451848,207.01,206.93,17.65000848]
[1731308175790,17.52451848,207.01,206.94,23.776884]
[1731308177017,17.52451848,206.99,206.92,23.902374]
[1731308177388,17.52451848,206.99,206.91,17.52451848]
[1731308177697,11.4393,207.04,206.9,23.776884]
[1731308177903,17.52451848,206.99,206.92,23.902374]
[1731308179907,17.52451848,207.01,206.93,17.52451848]
[1731308180283,17.52451848,207.01,206.94,23.776884]
[1731308181017,6.6093,207.04,206.97,17.52451848]
[1731308181307,17.52451848,207.05,206.97,17.52451848]
[1731308181517,17.52451848,207.05,206.98,23.776884]
[1731308181808,17.52451848,207.07,206.99,17.52451848]
[1731308183596,6.0196,207.09,207.01,17.52451848]
[1731308183597,23.54411848,207.09,207.01,17.52451848]
[1731308184004,17.52451848,207.07,207.0,23.776884]
[1731308184197,17.52451848,207.07,206.99,17.52451848]
[1731308184889,17.52451848,207.07,206.99,20.13453973]
[1731308186992,17.52451848,207.03,206.96,15.3629]
[1731308191415,17.52451848,207.01,206.96,15.3629]
[1731308191597,17.52451848,207.01,206.92,43.776884]
[1731308192401,17.52451848,207.01,206.93,0.12549]
[1731308193700,4.8293,207.07,206.92,23.776884]
[1731308193701,17.52451848,206.99,206.92,23.776884]
[1731308193906,4.8295,207.06,206.92,23.776884]
[1731308193907,17.52451848,206.97,206.92,23.776884]
[1731308194116,4.8295,207.06,207.01,143.37548152]
[1731308194301,17.52451848,207.02,206.92,23.776884]
[1731308194501,17.52451848,206.97,206.92,23.776884]
[1731308194911,17.52451848,206.99,206.92,23.776884]
[1731308196422,28.94,207.08,206.92,23.776884]
[1731308196423,17.52451848,207.01,206.93,17.65000848]
[1731308196626,17.52451848,207.01,206.94,23.776884]
[1731308198207,17.52451848,207.03,206.94,23.776884]
[1731308198405,17.52451848,207.03,206.95,17.52451848]
[1731308199224,17.52451848,207.03,206.96,23.902374]
[1731308199420,17.52451848,207.05,206.96,23.902374]
[1731308200130,17.52451848,207.05,206.95,17.52451848]
[1731308200308,17.52451848,207.03,206.95,17.52451848]
[1731308200706,17.52451848,207.03,206.91,18.10129219]
[1731308200707,17.52451848,207.03,206.93,17.52451848]
[1731308201045,17.52451848,207.03,206.94,23.902374]
[1731308201421,17.52451848,207.01,206.94,23.776884]
[1731308201617,17.52451848,207.01,206.93,17.52451848]
[1731308201805,17.52451848,206.99,206.91,35.62581067]
[1731308202912,17.52451848,207.01,206.91,35.62581067]
[1731308203420,17.52451848,207.01,206.92,23.776884]
[1731308204226,3.60493138,207.0,206.92,23.776884]
[1731308204428,17.52451848,207.01,206.92,23.776884]
[1731308207229,17.52451848,207.01,206.93,17.52451848]
[1731308209232,17.52451848,207.01,206.92,23.776884]
[1731308210624,17.52451848,207.01,206.93,17.52451848]
[1731308210825,17.52451848,207.03,206.94,23.776884]
[1731308211034,3.60573382,207.02,206.97,17.52451848]
[1731308211213,5.76872426,207.06,206.97,17.52451848]
[1731308211530,21.13012774,207.05,206.97,17.52451848]
[1731308211720,3.60560926,207.04,206.95,17.65000848]
[1731308211917,17.52451848,207.05,206.96,23.776884]
[1731308212231,3.60553539,207.04,206.96,23.776884]
[1731308212429,3.60553539,207.03,206.96,23.776884]
[1731308212631,17.52451848,207.05,206.97,17.52451848]
[1731308212817,3.60564183,207.04,206.97,17.52451848]
[1731308213027,17.52451848,207.05,206.97,17.52451848]
[1731308213225,3.60562367,207.04,206.97,17.52451848]
[1731308213531,23.54411848,207.09,206.99,17.52451848]
[1731308213729,3.60508464,207.08,207.05,17.52451848]
[1731308213909,23.79371848,207.15,207.07,17.52451848]
[1731308214112,17.52451848,207.13,207.05,17.52451848]
[1731308214338,3.60442786,207.12,207.05,17.52451848]
[1731308214512,17.52451848,207.13,207.05,17.52451848]
[1731308214717,3.60268657,207.12,207.05,17.52451848]
[1731308214916,17.52451848,207.13,207.05,17.52451848]
[1731308215409,3.60087378,207.12,207.05,17.52451848]
[1731308215612,17.52451848,207.13,207.05,17.52451848]
[1731308215813,3.60087101,207.12,207.05,17.52451848]
[1731308216010,17.52451848,207.13,207.05,17.52451848]
[1731308216210,17.52451848,207.11,207.03,17.52451848]
[1731308217339,3.60031611,207.1,207.03,17.52451848]
[1731308217530,17.52451848,207.11,207.03,17.52451848]
[1731308217829,3.60032865,207.1,207.03,17.52451848]
[1731308218029,17.52451848,207.11,207.03,17.52451848]
[1731308219938,17.52451848,207.15,207.07,17.52451848]
[1731308220435,17.52451848,207.15,207.08,23.902374]
[1731308220635,17.52451848,207.15,207.08,23.776884]
[1731308220845,17.52451848,207.15,207.07,17.52451848]
[1731308221521,17.52451848,207.15,207.01,0.1]
[1731308221522,17.52451848,207.17,207.09,17.52451848]
[1731308223324,17.52451848,207.17,207.1,23.776884]
[1731308223521,17.52451848,207.19,207.11,17.52451848]
[1731308224842,17.52451848,207.21,207.13,17.52451848]
[1731308225025,17.52451848,207.23,207.15,17.52451848]
[1731308225226,17.52451848,207.22,207.14,17.52451848]
[1731308225430,17.52451848,207.2,207.13,23.776884]
[1731308225631,6.0764,207.24,207.09,15.1542]
[1731308225632,17.52451848,207.16,207.09,32.67871848]
[1731308225952,17.52451848,207.16,206.9,70.0]
[1731308225953,17.52451848,207.11,207.03,33.64691848]
[1731308226127,17.52451848,207.13,207.05,17.52451848]
[1731308227245,17.52451848,207.13,207.06,23.776884]
[1731308227455,4.8262,207.2,207.04,23.776884]
[1731308227456,17.52451848,207.11,207.04,23.776884]
[1731308227745,24.95189,207.19,207.03,33.64691848]
[1731308227925,17.52451848,207.12,207.03,33.64691848]
[1731308228120,17.52451848,207.1,207.03,33.64691848]
[1731308228420,17.52451848,207.08,207.03,16.1224]
[1731308228639,17.52451848,207.08,206.99,17.52451848]
[1731308228823,17.52451848,207.08,207.0,0.12549]
[1731308229643,17.52451848,207.04,206.98,16.0575]
[1731308229848,17.52451848,207.04,206.92,5.03374119]
[1731308229849,17.52451848,207.0,206.93,16.0575]
[1731308230225,17.52451848,207.04,206.96,17.52451848]
[1731308230427,17.52451848,207.06,206.98,17.52451848]
[1731308230630,17.52451848,207.06,206.99,0.12549]
[1731308231081,17.52451848,207.08,207.01,23.776884]
[1731308231342,17.52451848,207.08,207.0,17.52451848]
[1731308233567,0.1,207.16,206.88,16.0575]
[1731308233568,6.3419,207.01,206.88,16.0575]
[1731308233728,17.52451848,206.95,206.88,18.64748825]
[1731308233929,17.52451848,206.97,206.88,36.17200673]
[1731308234242,17.52451848,206.97,206.89,0.12549]
[1731308234839,17.52451848,206.97,206.89,23.902374]
[1731308235230,17.52451848,206.97,206.9,17.52451848]
[1731308235435,17.52451848,206.99,206.91,23.902374]
[1731308235940,17.52451848,206.99,206.93,23.776884]
[1731308236654,17.52451848,206.99,206.9,17.52451848]
[1731308236846,17.52451848,206.97,206.91,23.776884]
[1731308237151,17.52451848,206.97,206.89,0.12549]
[1731308238458,17.52451848,206.97,206.9,17.52451848]
[1731308238658,17.52451848,206.97,206.91,23.776884]
[1731308239631,17.52451848,206.97,206.89,0.12549]
[1731308239848,17.52451848,206.97,206.89,23.776884]
[1731308240345,17.52451848,206.93,206.84,17.52451848]
[1731308240658,11.2726,207.01,206.88,17.52451848]
[1731308240659,17.52451848,206.97,206.88,17.52451848]
[1731308241160,17.52451848,206.97,206.9,17.52451848]
[1731308241945,6.3419,207.01,206.91,23.776884]
[1731308241946,17.52451848,206.99,206.91,23.776884]
[1731308242748,17.52451848,206.99,206.9,17.52451848]
[1731308242749,17.52451848,206.99,206.93,23.776884]
[1731308243357,23.86641848,207.01,206.93,23.776884]
[1731308243529,23.86641848,207.01,206.94,17.52451848]
[1731308244654,17.52451848,207.01,206.94,17.52451848]
[1731308246561,17.52451848,206.99,206.92,17.52451848]
[1731308247560,26.8784,207.06,206.85,5.12803871]
[1731308247561,17.52451848,207.0,206.93,17.65000848]
[1731308247758,22.0489,207.06,206.95,17.52451848]
[1731308247759,17.52451848,207.02,206.95,17.52451848]
[1731308248461,17.52451848,207.05,206.97,17.52451848]
[1731308248636,17.52451848,207.05,206.98,17.52451848]
[1731308248838,21.9315,207.11,207.03,17.52451848]
[1731308249061,39.45601848,207.11,207.03,17.52451848]
[1731308249647,17.52451848,207.1,207.03,17.52451848]
[1731308249957,17.52451848,207.09,207.01,17.52451848]
[1731308250143,17.52451848,207.1,207.02,17.52451848]
[1731308250660,17.52451848,207.09,207.02,17.52451848]
[1731308251538,17.52451848,207.08,207.0,17.52451848]
[1731308252966,17.52451848,207.04,206.98,17.52451848]
[1731308253337,17.52451848,207.06,206.98,17.52451848]
[1731308253842,17.52451848,207.08,207.0,17.52451848]
[1731308254046,17.52451848,207.1,207.03,17.52451848]
[1731308255540,17.52451848,207.12,207.06,17.52451848]
[1731308255871,6.5271,207.16,207.1,17.52451848]
[1731308256073,162.1,207.2,207.13,17.52451848]
[1731308256445,179.62451848,207.2,207.13,17.52451848]
[1731308256657,179.62451848,207.2,207.13,23.902374]
[1731308257042,17.52451848,207.18,207.1,17.52451848]
[1731308257247,17.52451848,207.18,207.11,23.776884]
[1731308257645,17.52451848,207.19,207.11,41.30140248]
[1731308258054,17.52451848,207.19,207.12,17.52451848]
[1731308258645,162.1,207.2,207.14,17.52451848]
[1731308259261,162.1,207.2,207.18,17.52451848]
[1731308259551,17.52451848,207.24,207.17,17.52451848]
[1731308260270,17.52451848,207.24,207.16,17.52451848]
[1731308260442,17.52451848,207.23,207.16,23.902374]
[1731308260648,17.52451848,207.2,207.13,32.98751848]
[1731308260877,17.52451848,207.21,207.13,32.98751848]
[1731308262261,17.52451848,207.2,207.12,20.05973955]
[1731308262467,17.52451848,207.2,207.08,15.3354]
[1731308262468,17.52451848,207.21,207.14,17.52451848]
[1731308262971,17.52451848,207.21,207.13,17.52451848]
[1731308263263,17.52451848,207.24,207.17,17.52451848]
[1731308263445,17.52451848,207.25,207.17,17.52451848]
[1731308264967,17.52451848,207.24,207.17,17.52451848]
[1731308265765,179.62451848,207.23,207.16,23.902374]
[1731308266861,179.62451848,207.23,207.14,23.902374]
[1731308267164,179.62451848,207.23,207.16,17.52451848]
[1731308269558,179.62451848,207.23,207.14,41.42689248]
[1731308270870,17.52451848,207.21,207.14,41.42689248]
[1731308271868,17.52451848,207.23,207.16,23.902374]
[1731308272960,6.5271,207.27,207.16,23.902374]
[1731308272961,17.52451848,207.26,207.19,17.52451848]
[1731308273153,17.52451848,207.25,207.17,17.52451848]
[1731308273550,24.05161848,207.27,207.2,0.12549]
[1731308273763,24.05161848,207.27,207.2,41.42689248]
[1731308273764,6.5271,207.27,207.2,41.42689248]
[1731308274083,6.5271,207.27,207.21,17.52451848]
[1731308274655,6.5271,207.27,207.2,41.42689248]
[1731308274969,6.5271,207.27,207.21,23.776884]
[1731308275567,24.05161848,207.27,207.2,23.902374]
[1731308276674,17.52451848,207.31,207.24,23.902374]
[1731308276856,17.52451848,207.31,207.24,41.42689248]
[1731308277184,17.52451848,207.29,207.22,17.52451848]
[1731308277557,17.52451848,207.34,207.26,17.52451848]
[1731308278375,6.1859,207.35,207.28,17.52451848]
[1731308278578,17.52451848,207.34,207.27,17.52451848]
[1731308279263,6.1859,207.35,207.28,23.902374]
[1731308279264,23.71041848,207.35,207.28,23.902374]
[1731308280672,17.52451848,207.34,207.28,23.902374]
[1731308280874,6.1859,207.35,207.28,41.42689248]
[1731308281159,23.71041848,207.35,207.28,41.42689248]
[1731308281358,17.52451848,207.34,207.28,23.902374]
[1731308281953,17.52451848,207.34,207.27,23.776884]
[1731308282160,17.52451848,207.33,207.26,23.776884]
[1731308282374,17.52451848,207.3,207.22,17.52451848]
[1731308282579,17.52451848,207.28,207.21,17.52451848]
[1731308282965,17.52451848,207.28,207.22,0.12549]
[1731308283173,17.52451848,207.29,207.22,17.52451848]
[1731308283375,17.52451848,207.25,207.18,20.11359675]
[1731308283683,17.52451848,207.27,207.2,17.52451848]
[1731308283883,17.52451848,207.28,207.2,17.52451848]
[1731308284979,17.52451848,207.26,207.21,0.12549]
[1731308285482,17.52451848,207.27,207.21,0.12549]
[1731308286285,17.52451848,207.26,207.21,0.12549]
[1731308287078,17.52451848,207.27,207.21,0.12549]
[1731308287587,17.52451848,207.25,207.19,23.776884]
[1731308288080,17.52451848,207.25,207.2,0.12549]
[1731308288277,17.52451848,207.24,207.17,32.85991848]
[1731308288485,17.52451848,207.24,207.18,23.776884]
[1731308288682,17.52451848,207.24,207.19,0.12549]
[1731308289064,17.52451848,207.23,207.19,0.12549]
[1731308290175,17.52451848,207.23,207.15,17.52451848]
[1731308290376,17.52451848,207.23,207.16,17.52451848]
[1731308290678,17.52451848,207.24,207.17,17.65000848]
[1731308290879,17.52451848,207.25,207.19,0.12549]
[1731308291121,23.98131848,207.26,207.2,0.12549]
[1731308291262,17.52451848,207.24,207.16,17.52451848]
[1731308291467,17.52451848,207.23,207.17,23.776884]
[1731308291678,17.52451848,207.23,207.16,23.902374]
[1731308292473,17.52451848,207.22,207.16,23.902374]
[1731308292673,17.52451848,207.22,207.15,23.902374]
[1731308293297,17.52451848,207.21,207.13,17.52451848]
[1731308293497,6.4568,207.26,207.07,4.9776]
[1731308293498,17.52451848,207.16,207.08,17.52451848]
[1731308293670,17.52451848,207.14,207.07,16.6335]
[1731308293871,17.52451848,207.13,207.07,16.6335]
[1731308294173,17.52451848,207.14,207.07,16.6335]